bitfinex-derivatives/quotes_BTCF0:USTF0_20230701
["timestamp","ask_amount","ask_price","bid_price","bid_amount"]
[1688209451503,0.06783028,30510.0,30509.0,1.10327413]
[1688209463110,0.0697962,30510.0,30509.0,1.06619499]
[1688209463319,0.17424689,30510.0,30509.0,0.73589499]
[1688209463619,0.19247658,30510.0,30509.0,0.73589499]
[1688209471220,0.19247658,30510.0,30509.0,0.37509499]
[1688209472526,0.19051066,30510.0,30509.0,0.37509499]
[1688209473922,0.19247658,30510.0,30509.0,0.37509499]
[1688209480734,0.17424689,30510.0,30509.0,0.37509499]
[1688209480933,0.17228097,30510.0,30509.0,0.37509499]
[1688209482446,0.15261097,30510.0,30509.0,0.37509499]
[1688209482629,0.17227997,30510.0,30509.0,0.37509499]
[1688209482824,0.17228097,30510.0,30509.0,0.41217413]
[1688209483345,0.34765205,30510.0,30509.0,0.41217413]
[1688209483739,0.50026302,30510.0,30509.0,0.75474444]
[1688209484333,0.17228097,30510.0,30509.0,0.75474444]
[1688209484834,0.17234097,30510.0,30509.0,0.75474444]
[1688209486936,0.19057066,30510.0,30509.0,0.75474444]
[1688209487241,0.19253658,30510.0,30509.0,0.73589499]
[1688209487632,0.17430689,30510.0,30509.0,0.73589499]
[1688209488033,0.17234097,30510.0,30509.0,0.75412468]
[1688209488532,0.17234097,30510.0,30509.0,0.75474444]
[1688209488735,0.17234097,30510.0,30509.0,0.77297413]
[1688209488931,0.17234097,30510.0,30509.0,0.75474444]
[1688209493244,0.19253658,30510.0,30509.0,0.73589499]
[1688209493641,0.17430689,30510.0,30509.0,0.73589499]
[1688209493838,0.17234097,30510.0,30509.0,0.73589499]
[1688209494437,0.17234097,30510.0,30509.0,0.75474444]
[1688209494943,0.17234097,30510.0,30509.0,0.73589499]
[1688209495145,0.19057066,30510.0,30509.0,0.73589499]
[1688209495346,0.19253658,30510.0,30509.0,0.73589499]
[1688209495938,0.17430689,30510.0,30509.0,0.37509499]
[1688209496447,0.19253658,30510.0,30509.0,0.37509499]
[1688209496747,0.17430689,30510.0,30509.0,0.37509499]
[1688209497650,0.19253658,30510.0,30509.0,0.37509499]
[1688209498141,0.19253758,30510.0,30509.0,0.37509499]
[1688209499245,0.19253758,30510.0,30509.0,0.37483095]
[1688209500555,0.19253758,30510.0,30509.0,0.3936804]
[1688209500556,0.17234197,30510.0,30509.0,0.3936804]
[1688209501050,0.17234197,30510.0,30509.0,0.37483095]
[1688209501454,0.19057166,30510.0,30509.0,0.37483095]
[1688209501650,0.19253758,30510.0,30509.0,0.37483095]
[1688209508762,0.17430789,30510.0,30509.0,0.37483095]
[1688209509061,0.19253758,30510.0,30509.0,0.37483095]
[1688209512565,0.17430789,30510.0,30509.0,0.37483095]
[1688209512762,0.19253758,30510.0,30509.0,0.37483095]
[1688209514765,0.19253758,30510.0,30509.0,0.35515795]
[1688209515355,0.19253758,30510.0,30509.0,0.37482795]
[1688209534589,0.17430789,30510.0,30509.0,0.37482795]
[1688209535389,0.19253758,30510.0,30509.0,0.37482795]
[1688209537195,0.1247073,30510.0,30509.0,0.35500938]
[1688209537496,0.4855073,30510.0,30505.0,0.00049167]
[1688209537700,0.68890584,30506.0,30505.0,0.00049167]
[1688209537991,0.68890584,30506.0,30505.0,0.35389167]
[1688209537992,0.76297535,30506.0,30505.0,0.35389167]
[1688209538207,0.78317096,30506.0,30505.0,0.35455115]
[1688209538981,0.72877545,30506.0,30505.0,0.35455115]
[1688209540295,0.40066961,30506.0,30505.0,0.35455115]
[1688209544589,0.40066961,30506.0,30505.0,0.00115115]
[1688209544798,1.16637561,30506.0,30505.0,0.00115115]
[1688209545094,0.83826977,30506.0,30505.0,0.00115115]
[1688209546288,0.83826977,30506.0,30505.0,0.00049167]
[1688209548203,0.83826977,30506.0,30505.0,0.0011503]
[1688209550205,0.83826977,30506.0,30505.0,0.00049167]
[1688209550397,0.48546977,30506.0,30505.0,0.35499167]
[1688209551208,0.51212856,30506.0,30505.0,0.3556503]
[1688209551601,0.51212856,30506.0,30505.0,0.35550626]
[1688209553101,0.4273284,30506.0,30505.0,0.35550626]
[1688209558100,0.4273284,30506.0,30505.0,0.37517826]
[1688209558599,0.42722958,30506.0,30505.0,0.37517826]
[1688209560807,0.5120308,30506.0,30505.0,0.35550626]
[1688209562396,0.5120308,30506.0,30505.0,0.37517826]
[1688209566603,0.5120308,30506.0,30505.0,0.35550626]
[1688209567711,0.5120308,30506.0,30505.0,0.37517826]
[1688209568315,0.42722958,30506.0,30505.0,0.37517826]
[1688209568606,0.7546192,30506.0,30505.0,0.37517826]
[1688209568811,0.42722958,30506.0,30505.0,0.37517826]
[1688209569111,0.7546192,30506.0,30505.0,0.37517826]
[1688209570812,0.42722958,30506.0,30505.0,0.37517826]
[1688209571412,0.7546192,30506.0,30505.0,0.37517826]
[1688209571610,0.42722958,30506.0,30505.0,0.37517826]
[1688209572024,0.7546192,30506.0,30505.0,0.37517826]
[1688209575216,0.7546192,30506.0,30505.0,0.37451963]
[1688209575614,0.51203004,30506.0,30505.0,0.37451963]
[1688209578214,0.15123004,30506.0,30505.0,0.37451963]
[1688209579717,0.15123004,30506.0,30505.0,0.23930538]
[1688209584422,0.51203004,30506.0,30505.0,0.23930538]
[1688209591726,0.51203004,30506.0,30505.0,0.21963338]
[1688209593028,0.51203004,30506.0,30505.0,0.23930738]
[1688209593329,0.51203004,30506.0,30505.0,0.2399663]
[1688209597016,0.51203004,30506.0,30505.0,0.5920663]
[1688209604532,0.51203004,30506.0,30505.0,0.2399663]
[1688209605739,0.51203004,30506.0,30505.0,0.2202923]
[1688209607625,0.15123004,30506.0,30505.0,0.2202923]
[1688209607827,0.51203004,30506.0,30505.0,0.2202923]
[1688209608022,0.51203004,30506.0,30505.0,0.02033292]
[1688209608227,0.51203004,30506.0,30505.0,0.3545]
[1688209608743,0.15123004,30506.0,30505.0,0.3545]
[1688209608934,0.51203004,30506.0,30505.0,0.3545]
[1688209609241,0.51203004,30506.0,30505.0,0.35515885]
[1688209610134,0.15123004,30506.0,30505.0,0.35515885]
[1688209610723,0.15123004,30506.0,30505.0,0.37483385]
[1688209611138,0.51203004,30506.0,30505.0,0.37483385]
[1688209611333,0.15123004,30506.0,30505.0,0.35515885]
[1688209611934,0.51203004,30506.0,30505.0,0.35515885]
[1688209612134,0.15123004,30506.0,30505.0,0.35515885]
[1688209613037,0.15123004,30506.0,30505.0,0.37483285]
[1688209613251,0.51203004,30506.0,30505.0,0.37483285]
[1688209613741,0.51203004,30506.0,30505.0,0.37477285]
[1688209625741,0.49183443,30506.0,30505.0,0.37477285]
[1688209626337,0.49380035,30506.0,30505.0,0.37477285]
[1688209629748,0.51203004,30506.0,30505.0,0.37477285]
[1688209630646,0.49380035,30506.0,30505.0,0.37477285]
[1688209631538,0.51203004,30506.0,30505.0,0.37477285]
[1688209631747,0.49380035,30506.0,30505.0,0.37477285]
[1688209632652,0.51203004,30506.0,30505.0,0.37477285]
[1688209632946,0.49380035,30506.0,30505.0,0.37477285]
[1688209633148,0.51203004,30506.0,30505.0,0.37477285]
[1688209633363,0.49380035,30506.0,30505.0,0.37477285]
[1688209633751,0.51203004,30506.0,30505.0,0.37477285]
[1688209634754,0.49380035,30506.0,30505.0,0.72697285]
[1688209634955,0.49183443,30506.0,30505.0,0.76405199]
[1688209636038,0.49183443,30506.0,30505.0,0.7458223]
[1688209636546,0.13103443,30506.0,30505.0,0.7458223]
[1688209636749,0.13103443,30506.0,30505.0,0.76405199]
[1688209636940,0.13103443,30506.0,30505.0,0.7458223]
[1688209637545,0.13103443,30506.0,30505.0,0.76405199]
[1688209637759,0.13103443,30506.0,30505.0,0.7458223]
[1688209637944,0.13103443,30506.0,30505.0,0.72697285]
[1688209638247,0.13300035,30506.0,30505.0,0.72697285]
[1688209638646,0.15123004,30506.0,30505.0,0.72697285]
[1688209639051,0.13300035,30506.0,30505.0,0.72697285]
[1688209639247,0.15123004,30506.0,30505.0,0.72697285]
[1688209639447,0.13300035,30506.0,30505.0,0.72697285]
[1688209640864,0.15123004,30506.0,30505.0,0.72697285]
[1688209641239,0.13300035,30506.0,30505.0,0.72697285]
[1688209642049,0.15123004,30506.0,30505.0,0.72697285]
[1688209642947,0.13300035,30506.0,30505.0,0.72697285]
[1688209643146,0.15123004,30506.0,30505.0,0.72697285]
[1688209643344,0.13300035,30506.0,30505.0,0.72697285]
[1688209644145,0.13300035,30506.0,30505.0,0.74520254]
[1688209644345,0.13103443,30506.0,30505.0,0.74520254]
[1688209644550,0.13103443,30506.0,30505.0,0.72697285]
[1688209644751,0.14926412,30506.0,30505.0,0.72697285]
[1688209644944,0.13103443,30506.0,30505.0,0.72697285]
[1688209645550,0.13103443,30506.0,30505.0,0.76405199]
[1688209645757,0.13103443,30506.0,30505.0,0.72697285]
[1688209647655,0.13300035,30506.0,30505.0,0.72697285]
[1688209649657,0.13103443,30506.0,30505.0,0.76405199]
[1688209650857,0.13103443,30506.0,30505.0,0.72697285]
[1688209651566,0.13103443,30506.0,30505.0,0.7458223]
[1688209654253,0.13103443,30506.0,30505.0,0.72697285]
[1688209654861,0.13300035,30506.0,30505.0,0.72697285]
[1688209655159,0.15123004,30506.0,30505.0,0.72697285]
[1688209656950,0.13300035,30506.0,30505.0,0.72697285]
[1688209658260,0.15123004,30506.0,30505.0,0.72697285]
[1688209661767,0.15123004,30506.0,30505.0,0.70729885]
[1688209662068,0.15123004,30506.0,30505.0,0.72697285]
[1688209662469,0.15123004,30506.0,30505.0,0.70729885]
[1688209664974,0.15123004,30506.0,30505.0,0.35509885]
[1688209666762,0.51203004,30506.0,30505.0,0.37477285]
[1688209669781,0.51203004,30506.0,30505.0,0.35509885]
[1688209670672,0.51203004,30506.0,30505.0,0.66419885]
[1688209670885,0.15123004,30506.0,30505.0,0.66419885]
[1688209671076,0.51203004,30506.0,30505.0,0.66419885]
[1688209672871,0.51203004,30506.0,30505.0,0.66401832]
[1688209673868,0.49183443,30506.0,30505.0,0.68286777]
[1688209674073,0.51203004,30506.0,30505.0,0.66401832]
[1688209674382,0.51203004,30506.0,30505.0,0.68369232]
[1688209674773,0.51203004,30506.0,30505.0,0.66401832]
[1688209676371,0.51203004,30506.0,30505.0,0.68369232]
[1688209676980,0.49183443,30506.0,30505.0,0.70254177]
[1688209677877,0.51203004,30506.0,30505.0,0.68369232]
[1688209678082,0.51203004,30506.0,30505.0,0.68363232]
[1688209679982,0.15123004,30506.0,30505.0,0.68363232]
[1688209681375,0.26942258,30506.0,30505.0,0.68363232]
[1688209685291,0.25119289,30506.0,30505.0,0.68363232]
[1688209687289,0.26942258,30506.0,30505.0,0.68363232]
[1688209687991,0.25119289,30506.0,30505.0,0.68363232]
[1688209688192,0.26942258,30506.0,30505.0,0.68363232]
[1688209688394,0.25119289,30506.0,30505.0,0.68363232]
[1688209688785,0.13300035,30506.0,30505.0,0.68363232]
[1688209689583,0.15123004,30506.0,30505.0,0.68363232]
[1688209690790,0.13300035,30506.0,30505.0,0.66395832]
[1688209692296,0.13300035,30506.0,30505.0,0.68363232]
[1688209692496,0.13103443,30506.0,30505.0,0.70248177]
[1688209694691,0.13103443,30506.0,30505.0,1.05698177]
[1688209697601,0.13103443,30506.0,30505.0,1.03813232]
[1688209697602,0.15123004,30506.0,30505.0,1.03813232]
[1688209698103,0.13300035,30506.0,30505.0,1.03813232]
[1688209699901,0.13300035,30506.0,30505.0,1.05636201]
[1688209700700,0.13103443,30506.0,30505.0,1.05636201]
[1688209701204,0.13103443,30506.0,30505.0,1.03813232]
[1688209702204,0.15123004,30506.0,30505.0,1.03813232]
[1688209702502,0.13300035,30506.0,30505.0,1.03813232]
[1688209703394,0.26942258,30506.0,30505.0,1.03813232]
[1688209705005,0.25119289,30506.0,30505.0,0.68363232]
[1688209705596,0.61199289,30506.0,30505.0,0.68363232]
[1688209705803,0.61199289,30506.0,30505.0,0.66395832]
[1688209706205,0.63022258,30506.0,30505.0,0.66395832]
[1688209706399,0.63022258,30506.0,30505.0,0.68363232]
[1688209707205,0.61199289,30506.0,30505.0,0.68363232]
[1688209707403,0.63022258,30506.0,30505.0,0.68363232]
[1688209708295,0.61199289,30506.0,30505.0,0.68363232]
[1688209708497,0.63022258,30506.0,30505.0,0.68363232]
[1688209709107,0.61199289,30506.0,30505.0,0.68363232]
[1688209709408,0.63022258,30506.0,30505.0,0.68363232]
[1688209709709,0.61199289,30506.0,30505.0,0.68363232]
[1688209710103,0.63022258,30506.0,30505.0,0.68363232]
[1688209711510,0.61199289,30506.0,30505.0,0.68363232]
[1688209711710,0.49380035,30506.0,30505.0,0.68363232]
[1688209712205,0.51203004,30506.0,30505.0,0.68363232]
[1688209713013,0.49380035,30506.0,30505.0,0.68363232]
[1688209714406,0.49183443,30506.0,30505.0,0.68363232]
[1688209714610,0.49183443,30506.0,30505.0,0.72071146]
[1688209717197,0.49183443,30506.0,30505.0,0.70248177]
[1688209718310,0.49183443,30506.0,30505.0,0.72071146]
[1688209719109,0.49183443,30506.0,30505.0,0.70248177]
[1688209719903,0.49183443,30506.0,30505.0,0.72071146]
[1688209720208,0.55966954,30506.0,30505.0,0.72071146]
[1688209721108,0.55966954,30506.0,30505.0,0.70248177]
[1688209721506,0.67786208,30506.0,30505.0,0.70248177]
[1688209722201,0.67786208,30506.0,30505.0,0.72071146]
[1688209723520,0.67786208,30506.0,30505.0,0.70248177]
[1688209724003,0.67786208,30506.0,30505.0,0.72071146]
[1688209724203,0.67786208,30506.0,30505.0,0.70248177]
[1688209724609,0.67786208,30506.0,30505.0,1.07521146]
[1688209724815,0.67786208,30506.0,30505.0,1.05698177]
[1688209725813,0.67786208,30506.0,30505.0,1.07521146]
[1688209727209,0.67786208,30506.0,30505.0,1.05698177]
[1688209729320,0.67786208,30506.0,30505.0,1.07521146]
[1688209729724,0.67786208,30506.0,30505.0,1.05698177]
[1688209730021,0.67786208,30506.0,30505.0,1.07521146]
[1688209731017,0.31706208,30506.0,30505.0,1.05698177]
[1688209731628,0.31706208,30506.0,30505.0,1.07521146]
[1688209732325,0.19886954,30506.0,30505.0,1.07521146]
[1688209733624,0.19886954,30506.0,30505.0,1.05698177]
[1688209733932,0.52669656,30506.0,30505.0,1.03813232]
[1688209734928,0.19886954,30506.0,30505.0,1.03813232]
[1688209735128,0.52669218,30506.0,30505.0,1.05698177]
[1688209735423,0.52669218,30506.0,30505.0,1.07521146]
[1688209735725,0.52669218,30506.0,30505.0,1.05698177]
[1688209735928,0.52669218,30506.0,30505.0,1.07521146]
[1688209736325,0.52669218,30506.0,30505.0,1.05698177]
[1688209736534,0.52669218,30506.0,30505.0,1.07521146]
[1688209736720,0.52669218,30506.0,30505.0,1.05698177]
[1688209737423,0.507117,30506.0,30505.0,1.05698177]
[1688209738030,0.526789,30506.0,30505.0,1.05698177]
[1688209738832,0.526789,30506.0,30505.0,1.07521146]
[1688209740230,0.526789,30506.0,30505.0,1.05698177]
[1688209740831,0.19896636,30506.0,30505.0,1.05698177]
[1688209741020,0.19896636,30506.0,30505.0,1.07521146]
[1688209741423,0.19896636,30506.0,30505.0,1.05698177]
[1688209741728,0.17929436,30506.0,30505.0,1.05698177]
[1688209741931,0.17929436,30506.0,30505.0,1.06358177]
[1688209742133,0.17929436,30506.0,30505.0,1.08181146]
[1688209742330,0.15263557,30506.0,30505.0,1.08181146]
[1688209742535,0.06783511,30506.0,30505.0,1.08181146]
[1688209743736,0.15263557,30506.0,30505.0,1.08181146]
[1688209745953,0.17230757,30506.0,30505.0,1.07521146]
[1688209747037,0.17230757,30506.0,30505.0,1.43601146]
[1688209747729,0.15263557,30506.0,30505.0,1.43601146]
[1688209748128,0.14953081,30506.0,30505.0,1.43601146]
[1688209748331,0.06473035,30506.0,30505.0,1.43601146]
[1688209750431,0.06473035,30506.0,30505.0,1.07521146]
[1688209750945,0.08440235,30506.0,30505.0,1.07521146]
[1688209751838,0.06473035,30506.0,30505.0,1.07521146]
[1688209752246,0.08440335,30506.0,30505.0,1.07521146]
[1688209752735,0.06473035,30506.0,30505.0,1.07521146]
[1688209753242,0.08440435,30506.0,30505.0,1.07521146]
[1688209755835,0.16919644,30506.0,30505.0,1.07521146]
[1688209763250,0.08440435,30506.0,30505.0,1.07521146]
[1688209767758,0.06473035,30506.0,30505.0,1.07521146]
[1688209767938,0.08440135,30506.0,30505.0,1.07521146]
[1688209768655,0.06473035,30506.0,30505.0,1.07521146]
[1688209769352,0.08440335,30506.0,30505.0,1.07521146]
[1688209778154,0.08636927,30506.0,30505.0,1.05636201]
[1688209778358,0.17115877,30506.0,30505.0,1.05636201]
[1688209778559,0.16919285,30506.0,30505.0,1.05636201]
[1688209779259,0.16919285,30506.0,30505.0,1.07521146]
[1688209785854,0.34772605,30506.0,30505.0,1.07521146]
[1688209786056,0.4124564,30506.0,30505.0,1.07521146]
[1688209788065,0.08440335,30506.0,30505.0,1.07521146]
[1688209789062,0.4124564,30506.0,30505.0,1.07521146]
[1688209789263,0.4124564,30506.0,30505.0,1.07455261]
[1688209789560,0.4124564,30506.0,30505.0,1.07514605]
[1688209792567,0.41442232,30506.0,30505.0,1.03806691]
[1688209792771,0.41442232,30506.0,30505.0,0.72896691]
[1688209793167,0.43265201,30506.0,30505.0,0.72896691]
[1688209793478,0.18939128,30506.0,30505.0,0.72896691]
[1688209793664,0.17116159,30506.0,30505.0,0.72896691]
[1688209794661,0.16919567,30506.0,30505.0,0.72896691]
[1688209794861,0.16919567,30506.0,30505.0,0.7471966]
[1688209795061,0.16919567,30506.0,30505.0,0.37446691]
[1688209795273,0.17116159,30506.0,30505.0,0.37446691]
[1688209796869,0.18939128,30506.0,30505.0,0.37446691]
[1688209797262,0.17116159,30506.0,30505.0,0.37446691]
[1688209797858,0.18939128,30506.0,30505.0,0.37446691]
[1688209798063,0.17116159,30506.0,30505.0,0.37446691]
[1688209798675,0.18939128,30506.0,30505.0,0.37446691]
[1688209798873,0.17116159,30506.0,30505.0,0.37446691]
[1688209799075,0.15148859,30506.0,30505.0,0.37446691]
[1688209799476,0.17116259,30506.0,30505.0,0.37446691]
[1688209800172,0.12466193,30506.0,30505.0,0.37446691]
[1688209800376,0.10643124,30506.0,30505.0,0.37446691]
[1688209800773,0.02163892,30506.0,30505.0,0.37446691]
[1688209800978,0.34969939,30506.0,30505.0,0.37446691]
[1688209801169,0.36792908,30506.0,30505.0,0.37446691]
[1688209801672,0.34969939,30506.0,30505.0,0.37446691]
[1688209804382,0.34773347,30506.0,30505.0,0.37446691]
[1688209804576,0.34773347,30506.0,30505.0,0.72796691]
[1688209805876,0.35267783,30506.0,30505.0,0.72796691]
[1688209806079,0.42051108,30506.0,30505.0,0.72796691]
[1688209806574,0.35267783,30506.0,30505.0,0.72796691]
[1688209806782,0.4205111,30506.0,30505.0,0.72796691]
[1688209806979,0.4205111,30506.0,30505.0,0.7461966]
[1688209807581,0.4205111,30506.0,30505.0,0.72796691]
[1688209810184,0.4205111,30506.0,30505.0,0.74681636]
[1688209810886,0.4008381,30506.0,30505.0,0.76504605]
[1688209811182,0.07277763,30506.0,30505.0,0.76504605]
[1688209812486,0.4008381,30506.0,30505.0,0.76504605]
[1688209812785,0.4205101,30506.0,30505.0,0.76504605]
[1688209813475,0.09244963,30506.0,30505.0,0.76504605]
[1688209813675,0.4205101,30506.0,30505.0,0.76504605]
[1688209815985,0.17724018,30506.0,30505.0,0.76504605]
[1688209817790,0.15756818,30506.0,30505.0,0.76504605]
[1688209821181,0.17724118,30506.0,30505.0,0.76504605]
[1688209823495,0.09245063,30506.0,30505.0,0.76504605]
[1688209824303,0.07277763,30506.0,30505.0,0.76504605]
[1688209824498,0.09245063,30506.0,30505.0,0.76504605]
[1688209824805,0.07277763,30506.0,30505.0,0.76504605]
[1688209825097,0.09244963,30506.0,30505.0,0.76504605]
[1688209826698,0.07277763,30506.0,30505.0,0.76504605]
[1688209830802,0.15756434,30506.0,30505.0,0.76504605]
[1688209833401,0.15756434,30506.0,30505.0,0.76445261]
[1688209836105,0.15756434,30506.0,30505.0,1.12525261]
[1688209837510,0.15538165,30506.0,30505.0,1.12525261]
[1688209838415,0.07059494,30506.0,30505.0,1.12525261]
[1688209838601,0.07059494,30506.0,30505.0,1.15123779]
[1688209843202,0.02563501,30507.0,30505.0,1.14983779]
[1688209843409,0.00049167,30512.0,30507.0,0.01967]
[1688209843709,0.00049167,30512.0,30511.0,0.734967]
[1688209843914,0.00049167,30512.0,30511.0,0.77204614]
[1688209844404,0.00049167,30512.0,30511.0,1.08954614]
[1688209844626,0.00491204,30512.0,30511.0,1.08954614]
[1688209845020,0.03166193,30512.0,30511.0,1.08954614]
[1688209845219,0.00491204,30512.0,30511.0,1.08954614]
[1688209846116,0.08968723,30512.0,30511.0,1.08954614]
[1688209853123,0.10935423,30512.0,30511.0,1.08954614]
[1688209853314,0.02457904,30512.0,30511.0,1.08954614]
[1688209857726,0.00491204,30512.0,30511.0,1.08954614]
[1688209858547,0.02457904,30512.0,30511.0,1.08954614]
[1688209858728,0.02457904,30512.0,30511.0,0.72874614]
[1688209859823,0.02457904,30512.0,30511.0,0.41124614]
[1688209864011,0.00491204,30512.0,30511.0,0.41124614]
[1688209867625,0.56962105,30515.0,30511.0,0.39301645]
[1688209867827,0.56962105,30515.0,30514.0,0.3524]
[1688209868129,0.65439478,30515.0,30514.0,0.39091545]
[1688209868928,0.67262447,30515.0,30514.0,0.39091545]
[1688209869131,0.65439478,30515.0,30514.0,0.39091545]
[1688209870925,0.68082735,30515.0,30514.0,0.39091545]
[1688209872334,0.66116135,30515.0,30514.0,0.39091545]
[1688209872529,0.68082835,30515.0,30514.0,0.39091545]
[1688209875221,0.69905804,30515.0,30514.0,0.39091545]
[1688209875426,0.70238321,30515.0,30514.0,0.39091545]
[1688209875626,0.68415352,30515.0,30514.0,0.39091545]
[1688209876230,0.70238321,30515.0,30514.0,0.39091545]
[1688209876429,0.68415352,30515.0,30514.0,0.40914514]
[1688209876632,0.68415352,30515.0,30514.0,0.39091545]
[1688209878637,0.68415352,30515.0,30514.0,0.40914514]
[1688209878837,0.68415352,30515.0,30514.0,0.39091545]
[1688209879735,1.04495352,30515.0,30514.0,0.39091545]
[1688209879933,1.04495352,30515.0,30514.0,0.372066]
[1688209880134,1.06514913,30515.0,30514.0,0.372066]
[1688209881729,1.04691944,30515.0,30514.0,0.372066]
[1688209882427,1.04691944,30515.0,30514.0,0.37197179]
[1688209882627,1.06514913,30515.0,30514.0,0.37197179]
[1688209886942,1.04691944,30515.0,30514.0,0.37197179]
[1688209887134,1.04495352,30515.0,30514.0,0.37197179]
[1688209887338,1.04495352,30515.0,30514.0,0.40905093]
[1688209887736,1.04495352,30515.0,30514.0,0.39082124]
[1688209887934,1.04495352,30515.0,30514.0,0.40905093]
[1688209888136,1.04495352,30515.0,30514.0,0.39082124]
[1688209889032,1.04495352,30515.0,30514.0,0.37197179]
[1688209889938,1.06514913,30515.0,30514.0,0.37197179]
[1688209890136,1.04691944,30515.0,30514.0,0.37197179]
[1688209891133,1.06514913,30515.0,30514.0,0.37197179]
[1688209892344,1.04691944,30515.0,30514.0,0.37197179]
[1688209892844,1.04495352,30515.0,30514.0,0.39082124]
[1688209893641,1.04495352,30515.0,30514.0,0.37197179]
[1688209893835,0.68415352,30515.0,30514.0,0.37197179]
[1688209894548,0.13419847,30515.0,30514.0,0.72647179]
[1688209894735,0.15242816,30515.0,30514.0,0.72647179]
[1688209894930,0.13419847,30515.0,30514.0,0.74470148]
[1688209895137,0.13419847,30515.0,30514.0,0.76355093]
[1688209895537,0.13419847,30515.0,30514.0,0.74532124]
[1688209896837,0.13419847,30515.0,30514.0,0.76355093]
[1688209897947,0.13419847,30515.0,30514.0,0.74532124]
[1688209898948,0.13419847,30515.0,30514.0,0.76355093]
[1688209899250,0.13419847,30515.0,30514.0,0.74532124]
[1688209899438,0.13419847,30515.0,30514.0,0.76355093]
[1688209899849,0.13419847,30515.0,30514.0,0.74532124]
[1688209900243,0.13419847,30515.0,30514.0,0.76355093]
[1688209901754,0.13419847,30515.0,30514.0,0.74532124]
[1688209902052,0.13616439,30515.0,30514.0,0.72647179]
[1688209903649,0.13616439,30515.0,30514.0,0.74470148]
[1688209903951,0.13616439,30515.0,30514.0,0.72647179]
[1688209904342,0.13419847,30515.0,30514.0,0.72647179]
[1688209904654,0.13419847,30515.0,30514.0,0.74470148]
[1688209904854,0.13419847,30515.0,30514.0,0.76355093]
[1688209905158,0.13419847,30515.0,30514.0,0.74532124]
[1688209905453,0.13419847,30515.0,30514.0,0.76355093]
[1688209907554,0.13419847,30515.0,30514.0,0.74532124]
[1688209907858,0.13419847,30515.0,30514.0,0.72647179]
[1688209909358,0.13419847,30515.0,30514.0,0.76355093]
[1688209911467,0.13419847,30515.0,30514.0,0.74532124]
[1688209912457,0.13419847,30515.0,30514.0,0.76355093]
[1688209914965,0.49499847,30515.0,30514.0,0.76355093]
[1688209915671,0.49499847,30515.0,30514.0,0.74532124]
[1688209916170,0.49499847,30515.0,30514.0,0.76355093]
[1688209917672,0.13419847,30515.0,30514.0,0.76355093]
[1688209918061,0.49499847,30515.0,30514.0,0.76355093]
[1688209918774,0.13419847,30515.0,30514.0,0.76355093]
[1688209918958,0.49499847,30515.0,30514.0,0.76355093]
[1688209920175,0.49499847,30515.0,30514.0,0.74532124]
[1688209920366,0.49499847,30515.0,30514.0,0.76355093]
[1688209920969,0.49499847,30515.0,30514.0,0.74532124]
[1688209921266,0.49499847,30515.0,30514.0,0.76355093]
[1688209922066,0.49499847,30515.0,30514.0,0.74532124]
[1688209923667,0.51322816,30515.0,30514.0,0.72647179]
[1688209924061,0.49499847,30515.0,30514.0,0.72647179]
[1688209924773,0.49499847,30515.0,30514.0,0.74532124]
[1688209924974,0.49499847,30515.0,30514.0,0.40905093]
[1688209925559,0.47533147,30515.0,30514.0,0.76355093]
[1688209929469,0.49499947,30515.0,30514.0,0.76355093]
[1688209930559,0.13419947,30515.0,30514.0,0.76355093]
[1688209937076,0.11453147,30515.0,30514.0,0.77015093]
[1688209939276,0.11453147,30515.0,30514.0,0.76355093]
[1688209942679,0.11637084,30515.0,30514.0,0.76355093]
[1688209943085,0.08993827,30515.0,30514.0,0.76355093]
[1688209943583,0.08993827,30515.0,30514.0,0.77015093]
[1688209943584,0.00516454,30515.0,30514.0,0.77015093]
[1688209943981,0.11860102,30518.0,30514.0,0.77015093]
[1688209944282,0.0847654,30517.0,30515.0,0.39787914]
[1688209944478,0.0847654,30517.0,30516.0,0.374168]
[1688209944782,0.0847654,30517.0,30516.0,0.41124714]
[1688209947286,0.1044314,30517.0,30516.0,0.41124714]
[1688209951688,0.0847654,30517.0,30516.0,0.41124714]
[1688209951886,0.40996,30521.0,30518.0,0.019665]
[1688209952091,0.40996,30521.0,30520.0,0.373064]
[1688209952285,0.43684732,30521.0,30520.0,0.373064]
[1688209952586,0.07604732,30521.0,30520.0,0.41014314]
[1688209953084,0.07604732,30521.0,30520.0,0.71794314]
[1688209954780,0.16080832,30521.0,30520.0,0.71794314]
[1688209954981,0.11164832,30521.0,30520.0,0.71794314]
[1688209955900,0.11882718,30521.0,30520.0,0.71794314]
[1688209961692,0.13849018,30521.0,30520.0,0.71794314]
[1688209962200,0.11882718,30521.0,30520.0,0.71794314]
[1688209962399,0.13849118,30521.0,30520.0,0.71794314]
[1688209963297,0.3289,30522.0,30520.0,1.07014314]
[1688209963605,0.16726745,30523.0,30522.0,0.019662]
[1688209963798,0.16726745,30523.0,30522.0,0.372062]
[1688209963994,0.16726745,30523.0,30522.0,0.40914114]
[1688209964395,0.07560083,30523.0,30522.0,0.372062]
[1688209965502,0.09579644,30523.0,30519.0,0.049161]
[1688209965704,0.09579644,30523.0,30518.0,0.019664]
[1688209965705,0.019664,30520.0,30518.0,0.019664]
[1688209966004,0.019664,30520.0,30519.0,0.3545]
[1688209966302,0.12265636,30520.0,30519.0,0.3545]
[1688209966496,0.12265636,30520.0,30519.0,0.374164]
[1688209966701,0.12462228,30520.0,30519.0,0.374164]
[1688209968303,0.10639259,30520.0,30519.0,0.374164]
[1688209968500,0.12462228,30520.0,30519.0,0.374164]
[1688209971011,0.13558964,30520.0,30519.0,0.374164]
[1688209971202,0.11539403,30520.0,30519.0,0.39301345]
[1688209971405,0.11735995,30520.0,30519.0,0.374164]
[1688209972213,0.13558964,30520.0,30519.0,0.374164]
[1688209972412,0.11735995,30520.0,30519.0,0.374164]
[1688209973408,0.13558964,30520.0,30519.0,0.374164]
[1688209975513,0.11735995,30520.0,30519.0,0.374164]
[1688209975910,0.13558964,30520.0,30519.0,0.374164]
[1688209977315,0.11735995,30520.0,30519.0,0.374164]
[1688209978109,0.13558964,30520.0,30519.0,0.374164]
[1688209978310,0.11735995,30520.0,30519.0,0.374164]
[1688209979221,0.11735995,30520.0,30519.0,0.37408637]
[1688209979609,0.13558964,30520.0,30519.0,0.37408637]
[1688209980211,0.11539403,30520.0,30519.0,0.37408637]
[1688209984216,0.11539403,30520.0,30519.0,0.39231606]
[1688209984416,0.11539403,30520.0,30519.0,0.37408637]
[1688209984616,0.11539403,30520.0,30519.0,0.39293582]
[1688209985519,0.09573003,30520.0,30519.0,0.41116551]
[1688209986417,0.01096736,30520.0,30519.0,0.41116551]
[1688209986722,0.351862,30522.0,30519.0,0.41116551]
[1688209986924,0.08475313,30521.0,30520.0,0.03707914]
[1688209987227,0.08475313,30521.0,30520.0,0.39239169]
[1688209987416,0.08475313,30521.0,30520.0,0.41124114]
[1688209990629,0.10441413,30521.0,30520.0,0.41124114]
[1688209990923,0.10441413,30521.0,30520.0,0.39301145]
[1688209991925,0.10441413,30521.0,30520.0,0.374162]
[1688209992518,0.10441413,30521.0,30520.0,0.39301145]
[1688209993719,0.10441413,30521.0,30520.0,0.41124114]